Cogmind - Beta 13 @@@ ROGUE MODE // 2024.07.07 @ 20:30:37 Player: lexi^-^ Result: Destroyed by Y-45 Defender with Heavy Assault Rifle Performance ------------- Evolutions (2) 1000 Regions Visited (4) 800 Robots Destroyed (34) 170 Value Destroyed (649) 649 Prototype IDs (7) 140 Alien Tech Used (0) 0 Bonus (0) 0 TOTAL SCORE: 2759 Bonus ------- None Cogmind --------- Core Integrity 0/550 Matter 26/300 Energy 99/100 System Corruption 0% Temperature Cool (9) Movement Core (50) Location -8/Materials Parts ------- > --- POWER (2) -------- (None) > --- PROPULSION (3) --- (None) > --- UTILITY (4) ------ (None) > --- WEAPON (2) ------- Improved Assault Rifle > --- INVENTORY (5) ---- Improved Signal Interpreter Advanced ECM Suite Improved Propulsion Shielding Medium Armor Plating Improved Assault Rifle Peak State ------------ > --- POWER ------------ Light Deuterium Engine > --- PROPULSION ------- Hover Unit Improved Hover Unit Airjet > --- UTILITY ---------- Small Storage Unit Compact Battery Improved Propulsion Shielding Light Armor Plating > --- WEAPON ----------- Minigun Minigun > --- INVENTORY -------- Weight Redist. System ECM Suite Improved Propulsion Shielding Improved Weapon Shielding Medium Armor Plating Hardened Medium Armor Plating Improved Assault Rifle Improved Assault Rifle [Rating: 25] Favorites ----------- Power Light Ion Engine Engine Light Ion Engine Power Core Nuclear Core Propulsion Hover Unit Wheel Wheel Hover Unit Hover Unit Flight Unit VTOL Module Utility Small Storage Unit Device Weight Redist. System Storage Small Storage Unit Protection Light Armor Plating Weapon Light Assault Rifle Energy Gun Small Laser Ballistic Gun Light Assault Rifle Build | -11 -10 -9 -9 -8 ------- Run | Yrd Mat Mat Min Mat Slots Evolved 4 | . . 2 . 2 Power 1 | . . . . 1 Propulsion 1 | . . 1 . . Utility 2 | . . 1 . 1 Weapon . | . . . . . Parts Attached 66 | 8 19 14 1 24 Power 5 | 1 1 1 . 2 Engine 4 | 1 1 1 . 1 Core 1 | . . . . 1 Reactor . | . . . . . Propulsion 22 | 4 11 5 . 2 Treads . | . . . . . Leg . | . . . . . Wheel 8 | 4 4 . . . Hover 10 | . 4 4 . 2 Flight 4 | . 3 1 . . Utility 26 | 1 3 6 . 16 Device 7 | . 3 2 . 2 Storage 3 | 1 . . . 2 Processor . | . . . . . Hackware . | . . . . . Protection 16 | . . 4 . 12 Artifact . | . . . . . Weapon 13 | 2 4 2 1 4 Energy Gun 1 | . 1 . . . Energy Cannon . | . . . . . Ballistic Gun 12 | 2 3 2 1 4 Ballistic Cannon . | . . . . . Launcher . | . . . . . Special Weapon . | . . . . . Impact Weapon . | . . . . . Slashing Weapon . | . . . . . Piercing Weapon . | . . . . . Special Melee Weapon . | . . . . . Unidentified Prototypes 1 | . . . . 1 Parts Lost 15 | . 2 5 . 8 Power 3 | . . 2 . 1 Propulsion 8 | . 2 3 . 3 Utility 3 | . . . . 3 Weapon 1 | . . . . 1 Highest Loss Streak 7 | . 1 2 . 7 To Critical Strikes . | . . . . . Average Slot Usage (%) 84 | . 98 87 64 70 Engine 8 | . 14 10 . 2 Wheel 7 | . 17 . . . Hover 16 | . 8 23 22 21 Device 9 | . 13 10 . 6 Storage 12 | . 14 11 11 11 Protection 6 | . . 8 11 11 Energy Gun 1 | . 3 . . . Ballistic Gun 20 | . 24 21 20 16 Naked Turns 31 | . . . . 31 Heaviest Build 31 | 10 11 19 13 31 Greatest Support 32 | 32 20 25 13 27 Greatest Overweight (x) 3 | 3 1 1 . 3 Average Overweight (x) . | . . . . . Largest Inventory Capacity 8 | 8 8 8 8 8 Average Capacity 7 | 7 8 8 8 7 Most Carried 8 | 6 8 8 8 8 Average Carried 6 | 3 6 5 7 6 Final Capacity 8 | 8 8 8 8 5 Final Carried 8 | 5 7 8 7 5 Class Distribution -------------------- 63% | Mutant 36% | Scavenger-Mutant Dominant Class ---------------- Scavenger-Mutant | -10/Materials Scavenger-Mutant | -9/Materials Mutant | -9/Mines Mutant | -8/Materials Resources | -11 -10 -9 -9 -8 ----------- Run | Yrd Mat Mat Min Mat Matter Collected 928 | 330 287 211 84 16 Remotely . | . . . . . Salvage Created 1171 | 197 584 204 60 126 Parts 81 | 13 45 12 2 9 Haulers Intercepted 2 | . 2 . . . Recyclers Shooed 5 | . 2 . . 3 Parts Field Recycled . | . . . . . Retrieved Matter . | . . . . . Parts Self-Destructed . | . . . . . Prevented . | . . . . . Kills | -11 -10 -9 -9 -8 ------- Run | Yrd Mat Mat Min Mat Combat Hostiles Destroyed 17 | . 11 3 1 2 Melee 1 | . . 1 . . Guns 16 | . 11 2 1 2 Classes Destroyed 10 | 3 4 . 1 2 Worker 1 | 1 . . . . Tunneler 5 | 5 . . . . Hauler 2 | . 2 . . . Recycler 3 | 1 1 1 . . Operator 1 | . . . . 1 Watcher 5 | . 3 1 . 1 Swarmer 5 | . 5 . . . Grunt 10 | . 6 3 . 1 Brawler 1 | . . . . 1 Duelist 1 | . . . 1 . Best Kill Streak 5 | 5 4 2 1 2 Combat Bots Only 3 | . 3 2 1 2 Max Kills in Single Turn 1 | 1 1 1 1 1 Gunslinging . | . . . . . Exploded . | . . . . . Melee 1 | . . 1 . . Uniques/NPCs Destroyed . | . . . . . Combat | -11 -10 -9 -9 -8 -------- Run | Yrd Mat Mat Min Mat Hostile Shots Fired 266 | . 82 64 4 116 Missed 92 | . 26 26 2 38 Damage Taken 2331 | . 562 454 46 1269 Core 801 | . 104 119 20 558 Absorbed by Shields . | . . . . . Redirected to Shielding 106 | . . 28 11 67 Core Remaining (%) 74 | 100 58 . 65 . Volleys Fired 142 | 25 70 30 4 13 Largest 2 | 2 2 2 2 2 Hottest 60 | 40 60 50 50 50 Shots Fired 266 | 50 123 60 7 26 Gun 266 | 50 123 60 7 26 Cannon . | . . . . . Launcher . | . . . . . Special . | . . . . . Kinetic 262 | 50 119 60 7 26 Thermal 4 | . 4 . . . Explosive . | . . . . . Electromagnetic . | . . . . . Robot Hit Streak 13 | 6 11 13 5 9 Robot Miss Streak 5 | 3 5 5 1 2 Penetration Max . | . . . . . Secondary Targets 1 | . . . . 1 Max Gunslinging Chain 1 | . . . . 1 Shots Hit Robots 166 | 32 78 35 6 15 Core Hits 71 | 12 36 13 2 8 Critical Kills . | . . . . . Critical Parts Destroyed 2 | 1 . . . 1 Critical Strikes 2 | 1 . . . 1 Destroy 2 | 1 . . . 1 Melee Attacks . | . . . . . Impact . | . . . . . Slashing . | . . . . . Piercing . | . . . . . Sneak Attacks . | . . . . . Combat Hostiles . | . . . . . Follow-up Attacks . | . . . . . Damage Inflicted 1746 | 266 652 409 118 301 Guns 1695 | 266 652 386 100 291 Cannons . | . . . . . Explosions . | . . . . . Melee . | . . . . . Ramming 51 | . . 23 18 10 Kinetic 1649 | 266 606 386 100 291 Thermal 46 | . 46 . . . Explosive . | . . . . . Electromagnetic . | . . . . . Impact . | . . . . . Slashing . | . . . . . Piercing . | . . . . . Highest Corruption . | . . . . . Average Corruption . | . . . . . Corruption Purged . | . . . . . Corruption Blocked . | . . . . . Overload Shots . | . . . . . Overflow Damage . | . . . . . Projectiles . | . . . . . Explosions . | . . . . . Melee . | . . . . . Knockbacks . | . . . . . Impact . | . . . . . Kinetic . | . . . . . Secondary . | . . . . . Self-Inflicted Damage 23 | . . 11 8 4 Shots . | . . . . . Rammed 7 | . . 1 3 3 Targets Rammed 7 | . . 1 3 3 Kicked . | . . . . . Crushed . | . . . . . Highest Temperature 303 | . 40 32 . 303 Average Temperature 36 | . 11 11 . 112 Received Heat Transfer 1224 | . 240 249 6 729 Siege Activations . | . . . . . Robots Corrupted . | . . . . . Combat Hostiles . | . . . . . Parts Fried . | . . . . . Impact Corruptions . | . . . . . Robots Melted . | . . . . . Combat Hostiles . | . . . . . Parts Melted . | . . . . . Heat Transferred 100 | . 100 . . . Parts Sabotaged . | . . . . . Parts Stolen . | . . . . . Parts Stripped . | . . . . . Power Chain Reactions . | . . . . . Alert | -11 -10 -9 -9 -8 ------- Run | Yrd Mat Mat Min Mat Peak Influence 273 | 35 142 273 132 267 Initial 102 | . 22 21 102 51 Average 72 | 15 51 137 126 66 Maximum Alert Level 1 | . . 1 . 1 Low Security (%) 93 | 100 100 68 100 97 Level 1 6 | . . 31 . 2 Level 2 . | . . . . . Level 3 . | . . . . . Level 4 . | . . . . . Level 5 . | . . . . . High Security . | . . . . . Max Security . | . . . . . Squads Dispatched 10 | . 6 3 . 1 Investigation 6 | . 5 1 . . Extermination . | . . . . . Reinforcement 4 | . 1 2 . 1 Assault . | . . . . . Garrison . | . . . . . Intercept . | . . . . . Searches Triggered . | . . . . . Construction Impeded 1 | . . 1 . . Haulers Reinforced . | . . . . . Active Scanning Responses . | . . . . . Cargo Convoy Interrupts . | . . . . . Stealth | -11 -10 -9 -9 -8 --------- Run | Yrd Mat Mat Min Mat Distress Signals 2 | . . 2 . . Communications Jammed . | . . . . . Distress Signals . | . . . . . Times Spotted 90 | . 20 25 6 39 Peak Tracking Total 13 | . 5 10 3 13 Tactical Retreats 17 | . 1 6 . 10 Traps | -11 -10 -9 -9 -8 ------- Run | Yrd Mat Mat Min Mat Traps Triggered 3 | . 2 1 . . Indirectly . | . . . . . Trap Hack Attempts . | . . . . . Triggered . | . . . . . Disarmed . | . . . . . Reprogrammed . | . . . . . Reused . | . . . . . Traps Extracted . | . . . . . Installed . | . . . . . Triggered . | . . . . . Machines | -11 -10 -9 -9 -8 ---------- Run | Yrd Mat Mat Min Mat Machines Disabled 2 | . . 2 . . Max in Single Turn 1 | . . 1 . . Machines Repaired . | . . . . . Machines Dismantled . | . . . . . Machines Sabotaged . | . . . . . Overloaded Fab Kills . | . . . . . Hacking | -11 -10 -9 -9 -8 --------- Run | Yrd Mat Mat Min Mat Machines Accessed 13 | . 7 . . 6 Terminals 10 | . 6 . . 4 Fabricators . | . . . . . Repair Stations . | . . . . . Recycling Units 3 | . 1 . . 2 Scanalyzers . | . . . . . Garrison Access . | . . . . . Total Hacks 47 | . 28 . . 19 Successful 25 | . 15 . . 10 Failed 22 | . 13 . . 9 Catastrophic 2 | . 1 . . 1 Database Lockouts . | . . . . . Manual . | . . . . . Terminals 42 | . 26 . . 16 Fabricators . | . . . . . Repair Stations . | . . . . . Recycling Units 5 | . 2 . . 3 Scanalyzers . | . . . . . Garrison Access . | . . . . . Terminal Hacks 23 | . 14 . . 9 Prototype ID Bank 4 | . 3 . . 1 Emergency Access Points 4 | . 2 . . 2 Alert Level 1 | . 1 . . . Unreport Threat 2 | . 2 . . . Locate Traps 3 | . . . . 3 Dispatch Records 2 | . 1 . . 1 Security Status 1 | . . . . 1 Patrol Status 1 | . 1 . . . Recall Investigation 2 | . 2 . . . Hauler Manifests 1 | . 1 . . . Zone Layout 2 | . 1 . . 1 Fabricator Hacks . | . . . . . Repair Station Hacks . | . . . . . Recycling Unit Hacks 2 | . 1 . . 1 Retrieve Components 2 | . 1 . . 1 Scanalyzer . | . . . . . Garrison Access Hacks . | . . . . . Unauthorized Hacks . | . . . . . Terminals . | . . . . . Fabricators . | . . . . . Repair Stations . | . . . . . Recycling Units . | . . . . . Scanalyzers . | . . . . . Garrison Access . | . . . . . Data Cores Recovered . | . . . . . Used . | . . . . . Hacking Detections 10 | . 6 . . 4 Full Trace Events 3 | . 3 . . . Feedback Events . | . . . . . Feedback Blocked . | . . . . . Robot Schematics Acquired . | . . . . . Robots Built . | . . . . . Authchips . | . . . . . Time . | . . . . . Total Robot Build Rating . | . . . . . Part Schematics Acquired . | . . . . . Parts Built . | . . . . . Authchips . | . . . . . Time . | . . . . . Total Part Build Rating . | . . . . . Parts Repaired . | . . . . . Time . | . . . . . Parts Recycled . | . . . . . Recycled Matter . | . . . . . Retrieved Matter . | . . . . . Retrieved Components 15 | . 9 . . 6 Parts Scanalyzed . | . . . . . Part Schematics Acquired . | . . . . . Parts Damaged . | . . . . . Bothacking | -11 -10 -9 -9 -8 ------------ Run | Yrd Mat Mat Min Mat Used RIF Installer . | . . . . . Robots Hacked . | . . . . . Non-combat . | . . . . . Combat . | . . . . . Robot Hacks Applied . | . . . . . Relay Couplers Released . | . . . . . Fabnet Peak Effective % . | . . . . . Robots Rewired . | . . . . . Allies Hacked . | . . . . . Hacks Repelled . | . . . . . Allies | -11 -10 -9 -9 -8 -------- Run | Yrd Mat Mat Min Mat Total Allies . | . . . . . Largest Group . | . . . . . Highest-Rated Group . | . . . . . Highest-Rated Ally . | . . . . . Total Orders . | . . . . . Ally Attacks . | . . . . . Total Damage . | . . . . . Kills . | . . . . . Allies Corrupted . | . . . . . Allies Melted . | . . . . . Intel | -11 -10 -9 -9 -8 ------- Run | Yrd Mat Mat Min Mat Robot Analysis Total . | . . . . . Derelict Logs Recovered 1 | . . . 1 . Drone Launches . | . . . . . Drone Recoveries . | . . . . . Exploration | -11 -10 -9 -9 -8 ------------- Run | Yrd Mat Mat Min Mat Turns Passed 2025 | 175 760 347 134 609 Spaces Moved 2171 | 102 737 411 197 724 Core 164 | 21 . . . 143 Treads . | . . . . . Legs . | . . . . . Wheels 501 | 81 420 . . . Hover 1506 | . 317 411 197 581 Flight . | . . . . . Fastest Speed 50 | 50 56 52 56 50 Average Speed 61 | 84 70 57 56 52 Slowest Speed 240 | 200 95 120 56 240 Overloaded Moves . | . . . . . Propulsion Burnouts . | . . . . . Robots Hopped . | . . . . . Cave-ins Triggered . | . . . . . Exploration Rate (%) 38 | 4 76 32 43 37 Regions Visited 4 Branch Regions 1 Pre-discovered Areas 1 | . . . 1 . Known Exits Taken . | . . . . . Unknown Exits Taken 4 | 1 1 1 1 . Scrap Searched . | . . . . . Spaces Dug . | . . . . . Terrain Destroyed . | . . . . . Melee . | . . . . . Projectile . | . . . . . AOE . | . . . . . Terrain Rammed . | . . . . . Walls Destroyed . | . . . . . Machines Disabled . | . . . . . Actions | -11 -10 -9 -9 -8 --------- Run | Yrd Mat Mat Min Mat Total 2656 | 153 880 477 214 932 Wait 185 | . 30 8 10 137 Move 2167 | 101 736 410 196 724 Hop . | . . . . . Pick Up 41 | 15 10 5 . 11 Fast Attach 16 | . 7 2 . 7 Attach 34 | 8 5 9 1 11 Detach 10 | . 1 6 . 3 Swap 16 | . 7 3 . 6 Drop 38 | 4 14 3 . 17 Fire 142 | 25 70 30 4 13 Melee . | . . . . . Ram 7 | . . 1 3 3 Kick . | . . . . . Crush . | . . . . . Escape Stasis . | . . . . . Rewire . | . . . . . Trap . | . . . . . Miscellaneous . | . . . . . Route ------- -11/Scrapyard -10/Materials (discovered 4 exits: [*Mat x3] / [*Min]) -9/Materials (discovered 2 exits: *Mat / [*Min]) -9/Mines -8/Materials History --------- Turn | Location | Event 12 | -11/Scrapyard | Discovered new exit (range 14) 176 | -11/Scrapyard | Entered Materials 298 | -10/Materials | Discovered new exit (range 12) 329 | -10/Materials | Build established: Mutant 426 | -10/Materials | Discovered new exit (range 9) 483 | -10/Materials | Discovered new exit (range 5) 672 | -10/Materials | Discovered new exit (range 12) 777 | -10/Materials | Build established: Scavenger-Mutant 936 | -10/Materials | Entered another Materials area 936 | -9/Materials | Evolved 2 slots: Propulsion x1, Utility x1 1167 | -9/Materials | Discovered new exit (range 10) 1195 | -9/Materials | Discovered new exit (range 15) 1283 | -9/Materials | Entered Mines 1290 | -9/Mines | Met a Derelict bent on vengeance 1291 | -9/Mines | Assembled infested the area 1296 | -9/Mines | Assisted by a Guerilla fighting off Assembled 1377 | -9/Mines | Learned location of Storage (-8) 1412 | -9/Mines | Discovered new exit (range 6) 1417 | -9/Mines | Entered Materials 1417 | -8/Materials | Evolved 2 slots: Power x1, Utility x1 1510 | -8/Materials | Build established: Mutant 1943 | -8/Materials | Core integrity fell below 50% 1966 | -8/Materials | Core integrity fell below 20% 1970 | -8/Materials | Lost 7 parts (3n3u1w) 2026 | -8/Materials | Destroyed by Y-45 Defender with Heavy Assault Rifle Last Messages --------------- 01948_ Slammed into R-06 Scavenger. 01969_ Dropped Imp. Assault Rifle. 01970_ Acquired Adv. ECM Suite. 01973_ Acquired Imp. Assault Rifle. 01981_ W-25 Informer destroyed. 01981_ Switching to secondary target: Y-45 Defender. 01983_ K-01 Serf collects debris. 01994_ Acquired Med. Armor Plating. 02013_ Connecting with Terminal... >>Access(Emergency) Found 2 emergency access doors: (3,41) (36,27) Map updated. >>Traps(Locate) Found 6 traps in 1 array: 6x EMP Trap Map updated. 02022_ Critical hit (Burn: +37). Map ----- +----------------------------------------------------+ | ?????????????????????#" =]= #??# [ # "T | | ?????????????????????# #??# # "" | | ?????????????????????###########??###### | | ???????????????????????????????????????#### | | ??????????????????????????# ???????????# ! | | ??????????????????????????# ""?????????# | | ??????????????????????????# ???????# | | ??????????????????????????#! ?????# | | ??????????????????????????# [ #### | | ??????????????????????????# + / | | ??????????????????????????# ####### | | ??????????????????????????#####+##????????? | | ??????????????????????????????????????????? | | ??????????????????????????????????????????? | | ??##????????????????????????? ?????????? | | ### #???????????????????????? ?????????? | | # ????????????????????????# ?????????? | | # """ ???????????????????????# #????????? | | # """ ###########+##?????????# #????????? | | # "S /Y """ #?##### ### #????????? | | # """ # "T" # # #????????? | | # "" # # !! T # #########? | | #! ?# ; !! # ##]]//!!#? | | ###+###+# Y # # ##]]//! #? | | ?#/ + # # ## #? | | ?# # g g@########### ## ## | | ?# ]] # ###### g ^^ | | ?# ]]?# #????# ^^ !%! ### | | ?# ?# #????# Y ^^ #?? | | ?# ! ??# ####?############### ########?? | | ?# ###??# #???????????????# #????????? | | ?#??????#### #######?????????# #????????? | | ???????????# # ########### #????????? | | ???????????# # #????????? | | ???????????# # +????????? | | ???????????# # #????????? | | ???????????# # ###+########+##????????? | | ?????#######+## ##??????????????????????? | | ?????#! # #???????????????????????? | | ?????# """ # #???????????????????????? | | ?????# """ + #???????????????????????? | | ?????# """ # #???????????????????????? | | ?????# # #???????????????????????? | | ?????#! """ # #???????????????????????? | | ?????# """ # ??????????????????????? | | ?????# """ # ?????????????????????? | | ?????# # ????????????????????? | | ????????+###### ???????????????????? | | ??????????????# ??????????????????? | | ??????????????# ?????????????????? | +----------------------------------------------------+ Best States ------------- Heat Dissipation 31 Energy Generation 14 Energy Capacity 340 Matter Stores 300 Matter Capacity 300 Sight Range 16 Terrain Scan Density 10 ECM Strength 1 Additional Mass Support 6 Armor Coverage 375 Propulsion Shielding 66 Weapon Shielding 66 Evasion (%) 54 Item Schematics ----------------- None Robot Schematics ------------------ None Fabricated ------------ Nothing Alien Tech Used ----------------- None Achievements -------------- None Challenges ------------ None Game ------ Seed PowerWarpArchive Manual? 0 Play Time 00:42:27 Cumulative 40.7 hours Start 2024.07.07 @ 19:48:04 End 2024.07.07 @ 20:30:37 Sessions 1 Manual Loads 0 Difficulty Rogue Special Mode None Game No. 21 Rogue 11 Adventurer 10 Explorer 0 Win Type - Total 0 Types 0/0/0/0/0/0/0/0/0 Lore% 10 Gallery% 29 Achievement% 23 Wizard Run 0 Options --------- Layout 1 ASCII 0 Keyboard 0 Movement Mouse Keybinds 0 Fullscreen 2 Font 24/Smallcaps Map View 50x35 Zoom Use 0% Tactical HUD 1 Map Filters NONE Filters NONE Steam 1 RUN: c0bd552c-cc82-488a-b4d7-453732bc1cfc